Cogmind - Beta 16.1 @@@ ROGUE MODE // 2026.02.11 @ 20:54:09 Player: Storm Mk9 Result: Destroyed by 0R-CLX(R) with Subdweller Machine Gun Performance ------------- Evolutions (0) 0 Regions Visited (2) 400 Robots Destroyed (20) 100 Value Destroyed (629) 629 Prototype IDs (2) 40 Alien Tech Used (0) 0 Bonus (-24) -24 TOTAL SCORE: 1145 Bonus ------- Friendly Fire -24 Cogmind --------- Core Integrity 0/250 Matter 300/300 Energy 93/100 System Corruption 1% Temperature Cool (0) Movement Rolling (110) Location -10/Subcaves Parts ------- > --- POWER (1) -------- (None) > --- PROPULSION (2) --- Subdweller Monowheel > --- UTILITY (2) ------ Disposable Heat Sink Medium Storage Unit > --- WEAPON (2) ------- Medium Laser Beam Cannon > --- INVENTORY (10) --- Wheel High-capacity Storage Unit Medium Laser Subdweller Laser Subdweller Beam Cannon Light Assault Rifle Mining Laser Peak State ------------ > --- POWER ------------ Neutrino Core > --- PROPULSION ------- Light Treads Subdweller Monowheel > --- UTILITY ---------- Medium Storage Unit Seismic Detector > --- WEAPON ----------- Medium Laser Bore Cannon > --- INVENTORY -------- Wheel High-capacity Storage Unit Medium Laser Beam Cannon Light Assault Rifle Mining Laser [Rating: 17] Favorites ----------- Power Ion Engine Engine Ion Engine Power Core Neutrino Core Propulsion Light Treads Treads Light Treads Wheel Subdweller Monowheel Utility Seismic Detector Device Seismic Detector Storage Small Storage Unit Weapon Medium Laser Energy Gun Medium Laser Energy Cannon Beam Cannon Ballistic Gun Light Assault Rifle Ballistic Cannon Bore Cannon Launcher Grenade Launcher Special Weapon Mining Laser Build | -11 -10 -10 ------- Run | Yrd Mat Sub Slots Evolved . | . . . Power . | . . . Propulsion . | . . . Utility . | . . . Weapon . | . . . Parts Attached 20 | 9 4 7 Power 3 | 2 . 1 Engine 2 | 2 . . Core 1 | . . 1 Reactor . | . . . Propulsion 3 | 2 . 1 Treads 2 | 2 . . Leg . | . . . Wheel 1 | . . 1 Hover . | . . . Flight . | . . . Utility 5 | 2 1 2 Device 3 | 1 1 1 Storage 2 | 1 . 1 Processor . | . . . Hackware . | . . . Protection . | . . . Artifact . | . . . Weapon 9 | 3 3 3 Energy Gun 3 | 2 1 . Energy Cannon 1 | . . 1 Ballistic Gun 1 | 1 . . Ballistic Cannon 1 | . . 1 Launcher 2 | . 1 1 Special Weapon 1 | . 1 . Impact Weapon . | . . . Slashing Weapon . | . . . Piercing Weapon . | . . . Special Melee Weapon . | . . . Unidentified Prototypes . | . . . Parts Lost 9 | . 2 7 Power 3 | . 1 2 Propulsion 2 | . . 2 Utility 2 | . 1 1 Weapon 2 | . . 2 Highest Loss Streak 3 | . 1 3 To Critical Strikes . | . . . Average Backups 6 | 3 7 6 Power . | . . . Propulsion 1 | 1 1 1 Utility . | . . 1 Weapon 4 | . 4 4 Tool/Special . | . . . Unused Backups 6 | . . 6 Power 1 | . . 1 Propulsion 1 | . . 1 Utility 1 | . . 1 Weapon 3 | . . 3 Tool/Special . | . . . Average Slot Usage (%) 90 | . 99 82 Engine 8 | . 14 3 Core 1 | . . 2 Treads 20 | . 28 13 Wheel 4 | . . 9 Device 11 | . 13 9 Storage 14 | . 14 14 Energy Gun 14 | . 14 14 Energy Cannon 3 | . . 7 Ballistic Gun 7 | . 12 3 Ballistic Cannon 1 | . . 2 Peak Build Rating 17 | 7 7 17 Average Rating 7 | 4 6 8 On Entrance 4 | . 7 7 Avg Prop Armor Cover (%) 14 | . . 14 Naked Turns . | . . . Heaviest Build 36 | 13 14 36 Greatest Support 40 | 40 40 40 Greatest Overweight (x) 1 | 1 . 1 Average Overweight (x) . | . . . Largest Inventory Capacity 10 | 8 8 10 Average Capacity 8 | 7 8 9 Most Carried 8 | 5 8 8 Average Carried 6 | 3 7 6 Final Capacity 10 | 8 8 10 Final Carried 8 | 3 8 7 Class Distribution -------------------- 100% | Mutant Dominant Class ---------------- Mutant | -10/Materials Mutant | -10/Subcaves Resources | -11 -10 -10 ----------- Run | Yrd Mat Sub Matter Collected 599 | 239 131 229 Remotely . | . . . Salvage Created 520 | 16 308 196 Parts 39 | 4 24 11 Haulers Intercepted . | . . . Recyclers Shooed . | . . . Parts Field Recycled . | . . . Retrieved Matter . | . . . Parts Self-Destructed 5 | . . 5 Prevented . | . . . Parts Restored . | . . . Kills | -11 -10 -10 ------- Run | Yrd Mat Sub Combat Hostiles Destroyed 18 | . 10 8 Guns 7 | . 4 3 Cannons 2 | . . 2 AOE 9 | . 6 3 Classes Destroyed 5 | 1 3 1 Worker 1 | . 1 . Tunneler 1 | 1 . . Swarmer 3 | . 3 . Grunt 7 | . 7 . Subdweller 8 | . . 8 Best Kill Streak 7 | 1 7 5 Combat Bots Only 6 | . 6 5 Max Kills in Single Turn 4 | 1 4 2 Gunslinging . | . . . Exploded 3 | . 3 2 Melee . | . . . Uniques/NPCs Destroyed . | . . . Combat | -11 -10 -10 -------- Run | Yrd Mat Sub Hostile Shots Fired 91 | . 35 56 Missed 30 | . 8 22 Hits 61 | . 27 34 Projectile 61 | . 27 34 Critical Strikes 2 | . 1 1 Damage Taken 1226 | . 402 824 Core 259 | . 74 185 Absorbed by Shields . | . . . Core Remaining (%) 100 | 100 . . Volleys Fired 63 | 2 29 32 Largest 2 | 2 2 2 Hottest 110 | 60 100 110 Shots Fired 110 | 4 47 59 Gun 72 | 4 36 32 Cannon 22 | . . 22 Launcher 6 | . 1 5 Special 10 | . 10 . Kinetic 37 | 2 18 17 Thermal 67 | 2 28 37 Explosive 6 | . 1 5 Electromagnetic . | . . . Robot Hit Streak 26 | 2 6 26 Robot Miss Streak 2 | 1 2 2 Penetration Max . | . . . Secondary Targets 3 | . 1 2 Max Gunslinging Chain 1 | . 1 1 Shots Hit Robots 77 | 2 26 49 Core Hits 44 | 1 26 17 Critical Kills . | . . . Critical Parts Destroyed . | . . . Critical Strikes 7 | . . 7 Burn 3 | . . 3 Destroy 4 | . . 4 Melee Attacks . | . . . Impact . | . . . Slashing . | . . . Piercing . | . . . Sneak Attacks . | . . . Combat Hostiles . | . . . Follow-up Attacks . | . . . Damage Inflicted 1941 | 17 512 1412 Guns 594 | 17 260 317 Cannons 339 | . . 339 Explosions 1008 | . 252 756 Melee . | . . . Ramming . | . . . Kinetic 342 | 6 91 245 Thermal 591 | 11 169 411 Explosive 888 | . 132 756 Electromagnetic 120 | . 120 . Impact . | . . . Slashing . | . . . Piercing . | . . . Highest Corruption 1 | . 1 1 Average Corruption 1 | . 1 1 Corruption Purged . | . . . Corruption Blocked . | . . . Effects 4 | . 1 3 Message Errors 1 | . . 1 Heat Flow Errors 2 | . 1 1 Data Loss (major) 1 | . . 1 Overload Shots . | . . . Overflow Damage . | . . . Projectiles . | . . . Explosions . | . . . Melee . | . . . Knockbacks 2 | . . 2 Impact . | . . . Kinetic 2 | . . 2 Secondary . | . . . Self-Inflicted Damage 88 | . 88 . Shots 3 | . 3 . Rammed . | . . . Targets Rammed . | . . . Kicked . | . . . Crushed . | . . . Highest Temperature 284 | 20 269 284 Average Temperature 93 | 15 96 89 Received Heat Transfer 675 | . 177 498 Siege Activations . | . . . Martial Activations . | . . . Shielding Activations . | . . . Robots Disrupted 2 | . 2 . Combat Hostiles 2 | . 2 . Robots Corrupted . | . . . Combat Hostiles . | . . . Parts Fried . | . . . Impact Corruptions . | . . . Robots Melted . | . . . Combat Hostiles . | . . . Parts Melted 2 | . 2 . Heat Transferred 1838 | 25 481 1332 Parts Sabotaged . | . . . Parts Stolen . | . . . Parts Stripped . | . . . Power Chain Reactions . | . . . Alert | -11 -10 -10 ------- Run | Yrd Mat Sub Maximum Alert Level 1 | . 1 . Low Security (%) 91 | 100 90 . Level 1 8 | . 9 . Level 2 . | . . . Level 3 . | . . . Level 4 . | . . . Level 5 . | . . . High Security . | . . . Max Security . | . . . Peak Influence 214 | 5 214 . Initial . | . . . Average 52 | . 58 . Influence Increases 357 | 5 352 . Destroy 0b10 Robot/C 200 | . 200 . Destroy 0b10 Robot/NC 10 | 5 5 . Destroy Leader 40 | . 40 . Successful Hack 25 | . 25 . Disable Machine 30 | . 30 . Destroy Structure 7 | . 7 . Lose Combat Pursuer 45 | . 45 . Influence Decreases 357 | 5 180 172 Entered New Map 84 | . . 84 Time Decay 245 | 5 160 80 Lost Part 28 | . 20 8 Squads Dispatched 2 | . 2 . Investigation 2 | . 2 . Extermination . | . . . Reinforcement . | . . . Assault . | . . . Garrison . | . . . Intercept . | . . . Searches Triggered . | . . . Construction Impeded . | . . . Haulers Reinforced . | . . . Active Scanning Responses . | . . . Cargo Convoy Interrupts . | . . . Stealth | -11 -10 -10 --------- Run | Yrd Mat Sub Distress Signals 1 | . 1 . Communications Jammed . | . . . Distress Signals . | . . . Times Spotted 32 | . 17 15 Peak Tracking Total 6 | . 5 6 Tactical Retreats 1 | . 1 . Traps | -11 -10 -10 ------- Run | Yrd Mat Sub Traps Triggered 2 | . 2 . Indirectly . | . . . Trap Hack Attempts . | . . . Triggered . | . . . Disarmed . | . . . Reprogrammed . | . . . Reused . | . . . Traps Extracted . | . . . Installed . | . . . Triggered . | . . . Machines | -11 -10 -10 ---------- Run | Yrd Mat Sub Machines Disabled 2 | . 2 . Max in Single Turn 2 | . 2 . Machines Repaired . | . . . Machines Dismantled . | . . . Machines Sabotaged . | . . . Overloaded Fab Kills . | . . . Hacking | -11 -10 -10 --------- Run | Yrd Mat Sub Machines Accessed 6 | . 5 1 Terminals 5 | . 5 . Fabricators . | . . . Repair Stations . | . . . Recycling Units . | . . . Scanalyzers . | . . . Garrison Access . | . . . Total Hacks 27 | . 22 5 Successful 18 | . 13 5 Failed 9 | . 9 . Catastrophic . | . . . Database Lockouts . | . . . Manual 17 | . 17 . Terminals 22 | . 22 . Fabricators . | . . . Repair Stations . | . . . Recycling Units . | . . . Scanalyzers . | . . . Garrison Access . | . . . Terminal Hacks 10 | . 5 5 Record 5 | . . 5 Robot Analysis 2 | . 2 . Prototype ID Bank 1 | . 1 . Locate Traps 1 | . 1 . Maintenance Status 1 | . 1 . Fabricator Hacks . | . . . Repair Station Hacks . | . . . Recycling Unit Hacks . | . . . Scanalyzer . | . . . Garrison Access Hacks . | . . . Unauthorized Hacks 8 | . 8 . Terminals 8 | . 8 . Botnet 4 | . 4 . Skim 4 | . 4 . Fabricators . | . . . Repair Stations . | . . . Recycling Units . | . . . Scanalyzers . | . . . Garrison Access . | . . . Data Cores Recovered . | . . . Used . | . . . Hacking Detections 5 | . 5 . Full Trace Events . | . . . Feedback Events . | . . . Feedback Blocked . | . . . Robot Schematics Acquired . | . . . Robots Built . | . . . Authchips . | . . . Time . | . . . Total Robot Build Rating . | . . . Part Schematics Acquired . | . . . Parts Built . | . . . Authchips . | . . . Time . | . . . Total Part Build Rating . | . . . Part Studies Acquired . | . . . Parts Repaired . | . . . Time . | . . . Parts Recycled . | . . . Recycled Matter . | . . . Retrieved Matter . | . . . Retrieved Components . | . . . Parts Scanalyzed . | . . . Part Schematics Acquired . | . . . Parts Damaged . | . . . Bothacking | -11 -10 -10 ------------ Run | Yrd Mat Sub Used RIF Installer . | . . . Robots Hacked . | . . . Non-combat . | . . . Combat . | . . . Robot Hacks Applied . | . . . Relay Couplers Released . | . . . Fabnet Peak Effective % . | . . . Robots Rewired . | . . . Allies Hacked . | . . . Hacks Repelled . | . . . Allies | -11 -10 -10 -------- Run | Yrd Mat Sub Total Allies . | . . . Largest Group . | . . . Highest-Rated Group . | . . . Highest-Rated Ally . | . . . Total Orders . | . . . Ally Attacks . | . . . Total Damage . | . . . Kills . | . . . Allies Corrupted . | . . . Allies Melted . | . . . Intel | -11 -10 -10 ------- Run | Yrd Mat Sub Active Infowar (turns) 965 | 2 661 302 Seismic 965 | 2 661 302 Robot Analysis Total 2 | . 2 . Derelict Logs Recovered . | . . . Drone Launches . | . . . Drone Recoveries . | . . . Exploration | -11 -10 -10 ------------- Run | Yrd Mat Sub Turns Passed 1507 | 91 696 720 Spaces Moved 904 | 55 354 495 Core 20 | 20 . . Treads 484 | 35 354 95 Legs . | . . . Wheels 400 | . . 400 Hover . | . . . Flight . | . . . Fastest Speed 50 | 50 160 110 Average Speed 137 | 124 160 122 Slowest Speed 240 | 160 160 240 Overloaded Moves . | . . . Propulsion Burnouts . | . . . Robots Hopped . | . . . Potential Cave-ins . | . . . Cave-ins Triggered . | . . . Exploration Rate (%) 34 | 3 62 39 Regions Visited 2 Branch Regions 1 Pre-discovered Areas 3 | . . 3 Known Exits Taken . | . . . Unknown Exits Taken 2 | 1 1 . Scrap Searched . | . . . Spaces Dug 9 | . 9 . Terrain Destroyed 37 | . 9 28 Melee . | . . . Projectile 10 | . 9 1 AOE 27 | . . 27 Terrain Rammed . | . . . Walls Destroyed . | . . . Machines Disabled . | . . . Actions | -11 -10 -10 --------- Run | Yrd Mat Sub Total 1038 | 72 417 549 Wait 20 | . 16 4 Move 902 | 54 353 495 Hop . | . . . Pick Up 21 | 7 8 6 Fast Attach 4 | 3 1 . Attach 10 | 4 1 5 Detach . | . . . Swap 13 | 2 7 4 Drop 5 | . 2 3 Fire 63 | 2 29 32 Melee . | . . . Ram . | . . . Kick . | . . . Crush . | . . . Escape Stasis . | . . . Rewire . | . . . Trap . | . . . Miscellaneous . | . . . Route ------- -11/Scrapyard -10/Materials (discovered 3 exits: [*Mat] / [*Min] / *Sub) -10/Subcaves History --------- Turn | Location | Event 9 | -11/Scrapyard | Discovered new exit (range 16) 92 | -11/Scrapyard | Entered Materials 235 | -10/Materials | Discovered new exit (range 16) 305 | -10/Materials | Build established: Mutant 633 | -10/Materials | Discovered new exit (range 9) 735 | -10/Materials | Discovered new exit (range 8) 788 | -10/Materials | Entered Subcaves 789 | -10/Subcaves | Approached by a straggling Scientist 851 | -10/Subcaves | Ambushed by swarm of Subdwellers 868 | -10/Subcaves | Core integrity fell below 50% 900 | -10/Subcaves | Lost 3 allies 1004 | -10/Subcaves | Lost 3 parts (1p1n1w) 1090 | -10/Subcaves | Ambushed by Subdweller buried in earth 1101 | -10/Subcaves | Core integrity fell below 20% 1142 | -10/Subcaves | Lost 3 parts (1p1u1w) 1188 | -10/Subcaves | Visited Clippyterm 1191 | -10/Subcaves | Learned location of Deep Caves (-7) 1191 | -10/Subcaves | Learned location of Extension (-4) 1393 | -10/Subcaves | Learned location of Zion (-7) 1393 | -10/Subcaves | Met a Zionite searching for "candidates" 1508 | -10/Subcaves | Destroyed by 0R-CLX(R) with Subdweller Machine Gun Last Messages --------------- It looks like you're biased against spaces, I think you need more help than I can offer. >>Record "Hexidium" It looks like you're searching for the Unchained HQ. I could tell you where it is but then I'd have to kill you. 01284_ Lgt. Treads destroyed. 01288_ 0Y-ZIS(R) destroyed. 01309_ Acquired Disposable Heat Sink. 01313_ Acquired 10 matter. 01315_ Acquired Sub. Beam Cannon. 01392_ JR-2EC(z): "She is not going to be happy we haven't found any suitable candidates yet." 01393_ JR-2EC(z): "Hey you! It's really dangerous down here, I feel that you could die at any moment. For your health and safety might I suggest a trip to Zion?" World map updated: -7/Zion. 01499_ 02-GD0(g) suffers critical hit (Destroy). 01505_ 0R-CLX(R) suffers critical hit (Burn). Map ----- +----------------------------------------------------+ | | | ?????????????????????????????????????????????????? | | ?????????????????????????????????????????????????? | | ?????????????????????????????????????????????????? | | ?????????????????????????????????????????????????? | | ?????????????????????????????????????????????????? | | ?????????????????????????????????????????????????? | | ?????????????????????????????????????????????????? | | ?????????????????????????????????????????????????? | | ?????????????????????????????????????????????????? | | ?????????????????????????????????????????????????? | | ?????????????????????????????????????????????????? | | ?????????????????????????????????????????????????? | | ?????????????????????????????????????????????????? | | ?????????????????????????????????????????????????? | | ?????????????????????????????????????????????????? | | ???????????????????????######????????????????????? | | ######????????????????## #????????????????????? | | ###??????????????# #????????????????????? | | #?????????###??? #????????????????????? | | #????????## ##?? #????????????????????? | | ###?????## ##?# #????????????????????? | | #???### ### #????????????????????? | | ## ##???# ##???????????????????? | | ### ###??# ###?????????????????? | | ## #### @ #?????????????????? | | ## ## #???????????? | | ##### ## ##???????????? | | ####### ## ## #????????????? | | #??######## " #????????????? | | #?????????# R " #????????????? | | ##?????????# R ## """???????????? | | ##???????? ####?? """????????????? | | #??????? #?????? ????????????? | | ## ??? ## ##???????# ????????????? | | ### ?? ?# #####??????????????????????? | | ## # # ? ??## ###??????????????????????????? | | ##? ????## #????????????????????????????? | | # ##???##?????###????????????????????????????? | | ?# ##??????????????????????????????????????????? | | ?? #???????????????????????????????????????????? | | ??? #???????????????????????????????????????????? | | ???? #???????????????????????????????????????????? | | ?????#???????????????????????????????????????????? | | ?????????????????????????????????????????????????? | | ?????????????????????????????????????????????????? | | ?????????????????????????????????????????????????? | | ?????????????????????????????????????????????????? | | ????????????????????????????????????????????????? | | ?????????????????????????????????????????????????? | +----------------------------------------------------+ Best States ------------- Heat Dissipation 25 Coolant Potential 50 Energy Generation 19 Energy Capacity 315 Matter Stores 300 Matter Capacity 300 Sight Range 16 Terrain Scan Density 10 Evasion (%) 50 Recoil Reduction 2 Item Schematics ----------------- None Robot Schematics ------------------ None Fabricated ------------ Nothing Repaired ---------- Nothing Studied --------- None Alien Tech Used ----------------- None Achievements -------------- None Challenges ------------ None Game ------ Seed ProjectionDecoderSlamshotty Manual? 0 Play Time 00:13:08 Cumulative 92.5 hours Start 2026.02.11 @ 20:41:55 End 2026.02.11 @ 20:54:09 Sessions 1 Manual Loads 0 Difficulty Rogue Special Mode None Game No. 96 Rogue 77 Adventurer 0 Explorer 19 Win Type - Total 0 Types 0/0/0/0/0/0/0/0/0/0 Lore% 57 Gallery% 46 Achievement% 40 Wizard Run 0 Options --------- Layout 1 ASCII 0 Keyboard 0 Movement Mouse Keybinds 0 Fullscreen 2 Font 16/SmallcapsGlow Map View 50x40 Zoom Use 0% Tactical HUD 1 Map Filters NONE Filters NONE Steam SD RUN: 8385d886-e1f6-4f29-b7f1-d05ca1342d39